fUSD/lending_fUSD_20250623
["ID","MTS","AMOUNT","RATE_DAILY","PERIOD"]
[367078122,1750651839773,-491.633584,0.00032876,7]
[367078124,1750651839783,-490.0,0.00032876,7]
[367078126,1750651839792,-212.81100995,0.00032876,7]
[367078128,1750651839802,-490.0,0.00032876,7]
[367078130,1750651839811,-490.0,0.00032876,7]
[367078132,1750651839820,-490.90942997,0.00032876,7]
[367078134,1750651839829,-490.0,0.00032876,7]
[367078136,1750651839839,-491.35842212,0.00032876,7]
[367078138,1750651839848,-491.19150048,0.00032876,7]
[367078140,1750651839858,-494.31772156,0.00032876,7]
[367078142,1750651839867,-466.15763954,0.00032876,7]
[367078144,1750651839877,-631.00995575,0.00032876,7]
[367078146,1750651839886,-254.1940832,0.00032876,7]
[367078149,1750651839895,-490.0,0.00032876,7]
[367078152,1750651839904,-490.0,0.00032876,7]
[367078155,1750651839913,-490.0,0.00032876,7]
[367078158,1750651839922,-492.27592114,0.00032876,7]
[367078160,1750651839931,-490.80881093,0.00032876,7]
[367078162,1750651839941,-492.8490396,0.00032876,7]
[367078164,1750651839950,-490.82898437,0.00032876,7]
[367078166,1750651839959,-491.342466,0.00032876,7]
[367078168,1750651839968,-490.0,0.00032876,7]
[367078170,1750651839977,-490.91832353,0.00032876,7]
[367078172,1750651839986,-490.0,0.00032876,7]
[367078174,1750651839995,-490.59791497,0.00032876,7]
[367078176,1750651840005,-490.0,0.00032876,7]
[367078178,1750651840014,-490.0,0.00032876,7]
[367078180,1750651840023,-493.98616642,0.00032876,7]
[367078182,1750651840032,-490.0,0.00032876,7]
[367078183,1750651840041,-491.48375932,0.00032876,7]
[367078185,1750651840050,-491.66256358,0.00032876,7]
[367078187,1750651840063,-493.72431453,0.00032876,7]
[367078189,1750651840072,-490.0,0.00032876,7]
[367078191,1750651840081,-490.0,0.00032876,7]
[367078193,1750651840091,-490.0,0.00032876,7]
[367078195,1750651840100,-490.6129791,0.00032876,7]
[367078197,1750651840109,-492.80319814,0.00032876,7]
[367078199,1750651840118,-490.86355183,0.00032876,7]
[367078201,1750651840128,-490.0,0.00032876,7]
[367078203,1750651840138,-490.52367389,0.00032876,7]
[367078205,1750651840147,-899.86,0.00032876,7]
[367078207,1750651840157,-490.0,0.00032876,7]
[367078209,1750651840166,-490.0,0.00032876,7]
[367078211,1750651840175,-490.0,0.00032876,7]
[367078213,1750651840184,-490.0,0.00032876,7]
[367078215,1750651840193,-490.0,0.00032876,7]
[367078217,1750651840203,-490.0,0.00032876,7]
[367078219,1750651840212,-490.0,0.00032876,7]
[367078221,1750651840222,-324.89976615,0.00032876,7]
[367078223,1750651840231,-285.97766565,0.00032876,7]
[367078225,1750651840240,-491.08935302,0.00032876,7]
[367078227,1750651840249,-490.0,0.00032876,7]
[367078229,1750651840258,-492.29319043,0.00032876,7]
[367078231,1750651840267,-165.43527948,0.00032876,7]
[367078233,1750651840276,-490.0,0.00032876,7]
[367078235,1750651840285,-490.0,0.00032876,7]
[367078237,1750651840295,-490.96248774,0.00032876,7]
[367078239,1750651840304,-820.57,0.00032876,7]
[367078241,1750651840313,-491.35545057,0.00032876,7]
[367078243,1750651840322,-490.97121393,0.00032876,7]
[367078245,1750651840331,-490.0,0.00032876,7]
[367078247,1750651840340,-490.0,0.00032876,7]
[367078249,1750651840350,-491.33512135,0.00032876,7]
[367078251,1750651840360,-621.39,0.00032876,7]
[367078253,1750651840369,-428.14300937,0.00032876,7]
[367078255,1750651840378,-1475.87,0.00032876,7]
[367078257,1750651840388,-492.63529423,0.00032876,7]
[367078259,1750651840397,-953.96,0.00032876,7]
[367078260,1750651840407,-490.7767115,0.00032876,7]
[367078262,1750651840416,-491.34016227,0.00032876,7]
[367078264,1750651840425,-490.0,0.00032876,7]
[367078266,1750651840435,-500.0,0.00032876,7]
[367078268,1750651840444,-490.0,0.00032876,7]
[367078270,1750651840453,-500.0,0.00032876,7]
[367078272,1750651840463,-874.73,0.00032876,7]
[367078274,1750651840472,-490.0,0.00032876,7]
[367078276,1750651840482,-490.43718967,0.00032876,7]
[367078278,1750651840491,-492.14000265,0.00032876,7]
[367078280,1750651840500,-490.59168723,0.00032876,7]
[367078282,1750651840510,-490.0,0.00032876,7]
[367078284,1750651840519,-492.2140073,0.00032876,7]
[367078286,1750651840530,-490.0,0.00032876,7]
[367078288,1750651840540,-492.62339299,0.00032876,7]
[367078290,1750651840550,-490.0,0.00032876,7]
[367078292,1750651840559,-791.2,0.00032876,7]
[367078294,1750651840569,-491.16291804,0.00032876,7]
[367078296,1750651840578,-491.03315297,0.00032876,7]
[367078298,1750651840588,-490.0,0.00032876,7]
[367078300,1750651840598,-490.60570141,0.00032876,7]
[367078302,1750651840608,-490.0,0.00032876,7]
[367078304,1750651840618,-490.0,0.00032876,7]
[367078306,1750651840627,-490.0,0.00032876,7]
[367078308,1750651840636,-490.0,0.00032876,7]
[367078310,1750651840646,-490.0,0.00032876,7]
[367078312,1750651840655,-490.78732614,0.00032876,7]
[367078316,1750651840664,-490.0,0.00032876,7]
[367078317,1750651840674,-493.47421034,0.00032876,7]
[367078319,1750651840683,-490.06,0.00032876,7]
[367078321,1750651840693,-490.0,0.00032876,7]
[367078323,1750651840702,-490.75210661,0.00032876,7]
[367078325,1750651840711,-490.0,0.00032876,7]
[367078327,1750651840721,-490.0,0.00032876,7]
[367078329,1750651840730,-490.0,0.00032876,7]
[367078331,1750651840739,-498.90611922,0.00032876,7]
[367078333,1750651840748,-490.0,0.00032876,7]
[367078335,1750651840757,-490.0,0.00032876,7]
[367078337,1750651840766,-490.0,0.00032876,7]
[367078339,1750651840776,-491.33548496,0.00032876,7]
[367078341,1750651840785,-490.0,0.00032876,7]
[367078343,1750651840795,-490.73225304,0.00032876,7]
[367078345,1750651840804,-490.0,0.00032876,7]
[367078347,1750651840815,-490.0,0.00032876,7]
[367078349,1750651840824,-490.0,0.00032876,7]
[367078351,1750651840834,-490.0,0.00032876,7]
[367078353,1750651840843,-490.0,0.00032876,7]
[367078355,1750651840853,-490.0,0.00032876,7]
[367078357,1750651840862,-491.29579555,0.00032876,7]
[367078359,1750651840871,-490.0,0.00032876,7]
[367078361,1750651840880,-490.0,0.00032876,7]
[367078363,1750651840890,-490.0,0.00032876,7]
[367078365,1750651840899,-490.0,0.00032876,7]
[367078367,1750651840909,-490.0,0.00032876,7]
[367078369,1750651840918,-1091.78,0.00032876,7]
[367078371,1750651840929,-490.0,0.00032876,7]
[367078373,1750651840938,-1173.88,0.00032876,7]
[367078375,1750651840947,-490.0,0.00032876,7]
[367078377,1750651840958,-490.0,0.00032876,7]
[367078379,1750651840966,-490.0,0.00032876,7]
[367078381,1750651840976,-490.0,0.00032876,7]
[367078383,1750651840986,-490.0,0.00032876,7]
[367078385,1750651840996,-490.0,0.00032876,7]
[367078387,1750651841005,-490.0,0.00032876,7]
[367078389,1750651841015,-490.46150417,0.00032876,7]
[367078391,1750651841025,-885.78,0.00032876,7]
[367078393,1750651841034,-490.0,0.00032876,7]
[367078395,1750651841044,-471.91886687,0.00032876,7]
[367078397,1750651841056,-490.0,0.00032876,7]
[367078399,1750651841066,-857.75,0.00032876,7]
[367078401,1750651841075,-1067.28,0.00032876,7]
[367078403,1750651841085,-1111.19,0.00032876,7]
[367078405,1750651841096,-490.82795367,0.00032876,7]
[367078407,1750651841106,-490.0,0.00032876,7]
[367078409,1750651841115,-551.44,0.00032876,7]
[367078411,1750651841125,-909.59,0.00032876,7]
[367078413,1750651841134,-490.0,0.00032876,7]
[367078415,1750651841144,-490.0,0.00032876,7]
[367078417,1750651841153,-490.0,0.00032876,7]
[367078419,1750651841162,-490.0,0.00032876,7]
[367078422,1750651841171,-490.0,0.00032876,7]
[367078424,1750651841181,-490.0,0.00032876,7]
[367078427,1750651841190,-490.0,0.00032876,7]
[367078429,1750651841200,-490.0,0.00032876,7]
[367078430,1750651841209,-490.0,0.00032876,7]
[367078433,1750651841218,-490.0,0.00032876,7]
[367078435,1750651841228,-490.0,0.00032876,7]
[367078437,1750651841238,-529.44,0.00032876,7]
[367078438,1750651841248,-490.0,0.00032876,7]
[367078441,1750651841257,-827.69,0.00032876,7]
[367078442,1750651841266,-490.14866212,0.00032876,7]
[367078445,1750651841276,-490.0,0.00032876,7]
[367078447,1750651841286,-490.0,0.00032876,7]
[367078449,1750651841295,-357.33969762,0.00032876,7]
[367078451,1750651841305,-490.0,0.00032876,7]
[367078453,1750651841314,-490.0,0.00032876,7]
[367078455,1750651841324,-490.0,0.00032876,7]
[367078457,1750651841334,-490.0,0.00032876,7]
[367078483,1750651841343,-491.13807775,0.00032876,7]
[367078486,1750651841591,-672.92,0.00032876,7]
[367078488,1750651841601,-490.0,0.00032876,7]
[367078490,1750651841610,-547.04,0.00032876,7]
[367078492,1750651841620,-490.0,0.00032876,7]
[367078494,1750651841629,-490.0,0.00032876,7]
[367078496,1750651841638,-500.0,0.00032876,7]
[367078498,1750651841648,-490.0,0.00032876,7]
[367078499,1750651841658,-490.0,0.00032876,7]
[367078500,1750651841668,-490.0,0.00032876,7]
[367078501,1750651841677,-589.91,0.00032876,7]
[367078502,1750651841687,-490.0,0.00032876,7]
[367078503,1750651841696,-495.36080017,0.00032876,7]
[367078504,1750651841706,-490.0,0.00032876,7]
[367078505,1750651841716,-654.69,0.00032876,2]
[367078506,1750651841726,-654.69,0.00032876,2]
[367078507,1750651841736,-654.69,0.00032876,2]
[367078508,1750651841746,-784.09,0.00032876,7]
[367078509,1750651841755,-499.99929439,0.00032876,7]
[367078510,1750651841765,-490.0,0.00032876,7]
[367078511,1750651841774,-490.67036609,0.00032876,7]
[367078512,1750651841783,-490.0,0.00032876,7]
[367078513,1750651841793,-490.0,0.00032876,7]
[367078514,1750651841803,-633.29192319,0.00032876,7]
[367078515,1750651841812,-490.0,0.00032876,7]
[367078516,1750651841822,-490.0,0.00032876,7]
[367078518,1750651841831,-490.0,0.00032876,7]
[367078520,1750651841840,-490.0,0.00032876,7]
[367078521,1750651841850,-585.9173908,0.00032876,7]
[367078523,1750651841859,-490.0,0.00032876,7]
[367078525,1750651841869,-952.76,0.00032876,7]
[367078528,1750651841879,-490.0,0.00032876,7]
[367078529,1750651841888,-154.6004586,0.00032876,7]
[367078532,1750651841898,-490.0,0.00032876,7]
[367078534,1750651841908,-490.0,0.00032876,7]
[367078536,1750651841918,-490.0,0.00032876,7]
[367078538,1750651841927,-490.0,0.00032876,7]
[367078540,1750651841937,-622.94,0.00032876,7]
[367078542,1750651841946,-490.0,0.00032876,7]
[367078544,1750651841956,-542.88,0.00032876,7]
[367078546,1750651841966,-490.0,0.00032876,7]
[367078548,1750651841976,-490.0,0.00032876,7]
[367078550,1750651841985,-500.0,0.00032876,7]
[367078552,1750651841995,-490.0,0.00032876,7]
[367078554,1750651842005,-500.0,0.00032876,7]
[367078556,1750651842015,-500.0,0.00032876,7]
[367078558,1750651842024,-1759.37,0.00032876,7]
[367078560,1750651842034,-151.0,0.00032876,7]
[367078562,1750651842044,-490.0,0.00032876,7]
[367078564,1750651842059,-1210.2,0.00032876,7]
[367078566,1750651842068,-490.0,0.00032876,7]
[367078568,1750651842077,-490.0,0.00032876,7]
[367078570,1750651842087,-490.0,0.00032876,7]
[367078572,1750651842098,-490.0,0.00032876,7]
[367078574,1750651842107,-490.0,0.00032876,7]
[367078576,1750651842117,-490.0,0.00032876,7]
[367078578,1750651842128,-490.0,0.00032876,7]
[367078580,1750651842138,-2870.387257,0.00032876,7]
[367078582,1750651842148,-490.0,0.00032876,7]
[367078584,1750651842157,-153.552939,0.00032876,7]
[367078586,1750651842166,-490.0,0.00032876,7]
[367078588,1750651842176,-1573.26,0.00032876,7]
[367078590,1750651842185,-497.38249867,0.00032876,7]
[367078592,1750651842196,-490.0,0.00032876,7]
[367078594,1750651842205,-491.03799308,0.00032876,7]
[367078596,1750651842216,-151.476984,0.00032876,7]
[367078598,1750651842225,-518.58,0.00032876,7]
[367078600,1750651842234,-490.0,0.00032876,7]
[367078603,1750651842244,-490.0,0.00032876,7]
[367078605,1750651842253,-490.0,0.00032876,7]
[367078607,1750651842262,-5131.49369951,0.00032876,7]
[367078609,1750651842271,-151.0,0.00032876,7]
[367078610,1750651842281,-490.0,0.00032876,7]
[367078613,1750651842290,-490.0,0.00032876,7]
[367078615,1750651842300,-490.0,0.00032876,7]
[367078616,1750651842309,-457.62517497,0.00032876,7]
[367078619,1750651842318,-151.0,0.00032876,7]
[367078620,1750651842327,-502.08794799,0.00032876,7]
[367078623,1750651842338,-490.0,0.00032876,7]
[367078625,1750651842347,-490.0,0.00032876,7]
[367078627,1750651842357,-637.59713386,0.00032876,7]
[367078629,1750651842367,-1067.54,0.00032876,7]
[367078631,1750651842376,-490.0,0.00032876,7]
[367078633,1750651842385,-834.59255148,0.00032876,7]
[367078635,1750651842395,-151.0,0.00032876,7]
[367078637,1750651842404,-490.0,0.00032876,7]
[367078639,1750651842413,-1396.319128,0.00032876,7]
[367078641,1750651842423,-802.23,0.00032876,7]
[367078643,1750651842432,-479.49406105,0.00032876,7]
[367078645,1750651842441,-490.0,0.00032876,7]
[367078647,1750651842451,-675.08,0.00032876,7]
[367078649,1750651842460,-490.0,0.00032876,7]
[367078651,1750651842469,-490.0,0.00032876,7]
[367078653,1750651842478,-490.0,0.00032876,7]
[367078655,1750651842488,-213.42768831,0.00032876,7]
[367078657,1750651842498,-490.0,0.00032876,7]
[367078659,1750651842507,-151.0,0.00032876,7]
[367078661,1750651842516,-501.56211266,0.00032876,7]
[367078663,1750651842526,-490.0,0.00032876,7]
[367078665,1750651842535,-490.0,0.00032876,7]
[367078667,1750651842545,-490.0,0.00032876,7]
[367078669,1750651842554,-497.16471244,0.00032876,7]
[367078671,1750651842563,-490.0,0.00032876,7]
[367078673,1750651842573,-151.0,0.00032876,7]
[367078675,1750651842582,-490.0,0.00032876,7]
[367078677,1750651842592,-490.0,0.00032876,7]
[367078679,1750651842601,-705.94,0.00032876,7]
[367078681,1750651842610,-491.74926536,0.00032876,7]
[367078683,1750651842620,-6348.159924,0.00032876,7]
[367078685,1750651842629,-534.89923975,0.00032876,7]
[367078687,1750651842639,-909.48,0.00032876,7]
[367078689,1750651842649,-367.97732802,0.00032876,7]
[367078691,1750651842658,-490.0,0.00032876,7]
[367078694,1750651842667,-490.0,0.00032876,7]
[367078696,1750651842677,-490.0,0.00032876,7]
[367078698,1750651842686,-490.0,0.00032876,7]
[367078700,1750651842695,-490.0,0.00032876,7]
[367078702,1750651842705,-490.0,0.00032876,7]
[367078704,1750651842714,-687.8,0.00032876,7]
[367078706,1750651842724,-490.0,0.00032876,7]
[367078708,1750651842733,-934.07,0.00032876,7]
[367078710,1750651842743,-490.0,0.00032876,7]
[367078712,1750651842752,-490.0,0.00032876,7]
[367078714,1750651842762,-342.91811501,0.00032876,7]
[367078716,1750651842771,-490.0,0.00032876,7]
[367078718,1750651842781,-224.27325093,0.00032876,7]
[367078720,1750651842790,-500.0,0.00032876,7]
[367078722,1750651842799,-490.0,0.00032876,7]
[367078724,1750651842809,-500.0,0.00032876,7]
[367078726,1750651842818,-500.0,0.00032876,7]
[367078728,1750651842827,-490.0,0.00032876,7]
[367078730,1750651842836,-954.17,0.00032876,7]
[367078732,1750651842847,-490.0,0.00032876,7]
[367078734,1750651842856,-490.0,0.00032876,7]
[367078736,1750651842865,-490.0,0.00032876,7]
[367078738,1750651842875,-490.0,0.00032876,7]
[367078740,1750651842885,-490.0,0.00032876,7]
[367078742,1750651842894,-490.0,0.00032876,7]
[367078744,1750651842903,-490.0,0.00032876,7]
[367078746,1750651842912,-1653.17,0.00032876,7]
[367078748,1750651842922,-708.58,0.00032876,7]
[367078750,1750651842931,-491.82890177,0.00032876,7]
[367078752,1750651842941,-490.0,0.00032876,7]
[367078754,1750651842950,-490.0,0.00032876,7]
[367078756,1750651842959,-490.0,0.00032876,7]
[367078758,1750651842969,-1446.18,0.00032876,7]
[367078760,1750651842979,-490.0,0.00032876,7]
[367078762,1750651842988,-490.0,0.00032876,7]
[367078764,1750651842997,-751.75,0.00032876,7]
[367078766,1750651843007,-514.11610339,0.00032876,7]
[367078768,1750651843016,-490.0,0.00032876,7]
[367078770,1750651843026,-524.5421703,0.00032876,7]
[367078772,1750651843035,-490.0,0.00032876,7]
[367078774,1750651843044,-1861.33,0.00032876,7]
[367078776,1750651843056,-702.12,0.00032876,7]
[367078778,1750651843066,-490.0,0.00032876,7]
[367078780,1750651843075,-490.0,0.00032876,7]
[367078782,1750651843085,-490.0,0.00032876,7]
[367078784,1750651843094,-273.5390621,0.00032876,7]
[367078786,1750651843107,-359.14151047,0.00032876,7]
[367078788,1750651843116,-1430.82,0.00032876,7]
[367078790,1750651843125,-490.0,0.00032876,7]
[367078792,1750651843140,-325.85590902,0.00032876,7]
[367078794,1750651843149,-490.0,0.00032876,7]
[367078796,1750651843159,-490.0,0.00032876,7]
[367078799,1750651843168,-842.79,0.00032876,7]
[367078801,1750651843177,-1853.35,0.00032876,7]
[367078803,1750651843186,-490.0,0.00032876,7]
[367078805,1750651843195,-490.0,0.00032876,7]
[367078807,1750651843205,-490.0,0.00032876,7]
[367078808,1750651843214,-490.0,0.00032876,7]
[367078811,1750651843224,-1821.07,0.00032876,7]
[367078813,1750651843233,-490.0,0.00032876,7]
[367078815,1750651843242,-902.44,0.00032876,7]
[367078817,1750651843253,-1855.08,0.00032876,7]
[367078819,1750651843262,-267.19938365,0.00032876,7]
[367078821,1750651843271,-490.0,0.00032876,2]
[367078823,1750651843281,-490.0,0.00032876,7]
[367078825,1750651843291,-267.83495167,0.00032876,7]
[367078827,1750651843301,-242.71725468,0.00032876,7]
[367078829,1750651843310,-490.0,0.00032876,7]
[367078831,1750651843319,-1488.74,0.00032876,7]
[367078833,1750651843329,-490.0,0.00032876,7]
[367078835,1750651843338,-490.0,0.00032876,7]
[367078837,1750651843348,-490.0,0.00032876,7]
[367078839,1750651843358,-490.0,0.00032876,7]
[367078841,1750651843367,-490.0,0.00032876,7]
[367078843,1750651843376,-490.0,0.00032876,7]
[367078845,1750651843386,-490.0,0.00032876,2]
[367078847,1750651843395,-491.40167238,0.00032876,7]
[367078849,1750651843404,-502.87266091,0.00032876,7]
[367078851,1750651843414,-490.0,0.00032876,7]
[367078853,1750651843424,-237.55002551,0.00032876,7]
[367078855,1750651843433,-490.0,0.00032876,7]
[367078857,1750651843442,-490.0,0.00032876,7]
[367078859,1750651843451,-885.56,0.00032876,7]
[367078861,1750651843460,-497.75667788,0.00032876,7]
[367078863,1750651843470,-490.0,0.00032876,7]
[367078865,1750651843480,-2472.17,0.00032876,7]
[367078867,1750651843489,-490.0,0.00032876,7]
[367078869,1750651843499,-490.0,0.00032876,7]
[367078871,1750651843508,-490.0,0.00032876,7]
[367078873,1750651843517,-541.36,0.00032876,7]
[367078875,1750651843527,-515.5530712,0.00032876,7]
[367078877,1750651843536,-490.0,0.00032876,7]
[367078879,1750651843546,-490.0,0.00032876,7]
[367078881,1750651843557,-905.1,0.00032876,7]
[367078883,1750651843567,-490.0,0.00032876,7]
[367078885,1750651843576,-490.0,0.00032876,7]
[367078887,1750651843586,-776.6,0.00032876,7]
[367078889,1750651843596,-492.57937457,0.00032876,7]
[367078892,1750651843606,-490.0,0.00032876,7]
[367078894,1750651843615,-689.14,0.00032876,7]
[367078896,1750651843625,-490.9953592,0.00032876,7]
[367078898,1750651843634,-490.0,0.00032876,7]
[367078900,1750651843644,-888.92,0.00032876,7]
[367078903,1750651843653,-490.0,0.00032876,7]
[367078906,1750651843662,-490.0,0.00032876,7]
[367078909,1750651843671,-490.0,0.00032876,7]
[367078911,1750651843680,-490.0,0.00032876,7]
[367078913,1750651843689,-490.0,0.00032876,7]
[367078915,1750651843699,-639.4,0.00032876,7]
[367078917,1750651843708,-724.93,0.00032876,7]
[367078919,1750651843719,-506.27647043,0.00032876,7]
[367078921,1750651843728,-1730.63,0.00032876,7]
[367078924,1750651843737,-490.0,0.00032876,7]
[367078927,1750651843747,-491.76867525,0.00032876,7]
[367078929,1750651843756,-490.0,0.00032876,7]
[367078931,1750651843765,-354.48868587,0.00032876,7]
[367078933,1750651843775,-2066.58,0.00032876,7]
[367078935,1750651843784,-490.712363,0.00032876,7]
[367078937,1750651843793,-490.0,0.00032876,7]
[367078939,1750651843803,-556.4,0.00032876,7]
[367078941,1750651843812,-490.0,0.00032876,7]
[367078943,1750651843822,-490.0,0.00032876,7]
[367078945,1750651843831,-757.27,0.00032876,7]
[367078947,1750651843841,-490.0,0.00032876,7]
[367078949,1750651843850,-1720.77,0.00032876,7]
[367078951,1750651843859,-453.89425983,0.00032876,7]
[367078953,1750651843868,-1168.77,0.00032876,7]
[367078955,1750651843877,-1395.99,0.00032876,7]
[367078957,1750651843887,-490.80819064,0.00032876,7]
[367078959,1750651843896,-491.82371384,0.00032876,7]
[367078972,1750651844005,-156.664641,0.00032876,7]
[367078974,1750651844017,-1495.08,0.00032876,7]
[367078976,1750651844027,-490.0,0.00032876,7]
[367078978,1750651844036,-490.0,0.00032876,7]
[367078980,1750651844045,-490.0,0.00032876,7]
[367078982,1750651844059,-1032.12,0.00032876,7]
[367078984,1750651844068,-490.0,0.00032876,7]
[367078986,1750651844078,-1555.31,0.00032876,7]
[367078988,1750651844087,-490.0,0.00032876,7]
[367078990,1750651844096,-490.0,0.00032876,7]
[367078992,1750651844106,-492.12164098,0.00032876,7]
[367078994,1750651844115,-490.0,0.00032876,7]
[367078996,1750651844124,-590.43,0.00032876,7]
[367078998,1750651844133,-490.0,0.00032876,7]
[367079000,1750651844143,-449.43,0.00032876,7]
[367079002,1750651844152,-2019.71,0.00032876,7]
[367079004,1750651844161,-684.89,0.00032876,7]
[367079006,1750651844171,-490.0,0.00032876,7]
[367079008,1750651844180,-490.0,0.00032876,7]
[367079011,1750651844189,-490.0,0.00032876,7]
[367079012,1750651844199,-553.49,0.00032876,7]
[367079014,1750651844208,-652.14,0.00032876,7]
[367079016,1750651844217,-490.0,0.00032876,7]
[367079018,1750651844226,-1054.24,0.00032876,7]
[367079021,1750651844235,-490.0,0.00032876,7]
[367079023,1750651844244,-490.0,0.00032876,7]
[367079024,1750651844253,-772.51,0.00032876,7]
[367079027,1750651844263,-490.0,0.00032876,7]
[367079029,1750651844272,-2635.72,0.00032876,7]
[367079031,1750651844282,-490.0,0.00032876,7]
[367079033,1750651844291,-742.07,0.00032876,7]
[367079035,1750651844300,-490.0,0.00032876,7]
[367079037,1750651844309,-354.45825199,0.00032876,7]
[367079039,1750651844319,-490.0,0.00032876,7]
[367079041,1750651844327,-490.0,0.00032876,7]
[367079043,1750651844337,-501.3889969,0.00032876,7]
[367079045,1750651844346,-976.25,0.00032876,7]
[367079047,1750651844355,-541.85,0.00032876,7]
[367079049,1750651844364,-490.0,0.00032876,7]
[367079051,1750651844373,-575.38,0.00032876,7]
[367079053,1750651844383,-490.0,0.00032876,7]
[367079055,1750651844392,-490.0,0.00032876,7]
[367079057,1750651844402,-490.0,0.00032876,7]
[367079059,1750651844411,-490.0,0.00032876,7]
[367079061,1750651844421,-487.19111733,0.00032876,7]
[367079064,1750651844430,-510.23,0.00032876,7]
[367079067,1750651844439,-490.0,0.00032876,7]
[367079070,1750651844448,-1555.69,0.00032876,7]
[367079072,1750651844457,-490.0,0.00032876,7]
[367079074,1750651844467,-490.0,0.00032876,7]
[367079076,1750651844477,-490.0,0.00032876,7]
[367079078,1750651844486,-490.0,0.00032876,7]
[367079080,1750651844495,-1072.09,0.00032876,7]
[367079082,1750651844504,-490.0,0.00032876,7]
[367079084,1750651844513,-490.0,0.00032876,7]
[367079086,1750651844523,-159.85601954,0.00032876,7]
[367079088,1750651844532,-1153.76,0.00032876,7]
[367079090,1750651844542,-993.49,0.00032876,7]
[367079092,1750651844551,-1112.84,0.00032876,7]
[367079094,1750651844560,-490.0,0.00032876,7]
[367079096,1750651844569,-490.0,0.00032876,7]
[367079098,1750651844579,-1935.06,0.00032876,7]
[367079100,1750651844589,-1374.96,0.00032876,7]
[367079102,1750651844598,-490.0,0.00032876,7]
[367079104,1750651844608,-1492.03,0.00032876,7]
[367079106,1750651844617,-540.01,0.00032876,7]
[367079108,1750651844626,-490.0,0.00032876,7]
[367079110,1750651844636,-1621.55,0.00032876,7]
[367079112,1750651844645,-1594.72,0.00032876,7]
[367079114,1750651844655,-490.0,0.00032876,7]
[367079116,1750651844664,-490.0,0.00032876,7]
[367079118,1750651844673,-490.0,0.00032876,7]
[367079120,1750651844682,-653.96,0.00032876,7]
[367079121,1750651844691,-490.0,0.00032876,7]
[367079123,1750651844700,-510.42,0.00032876,7]
[367079125,1750651844710,-493.24278846,0.00032876,7]
[367079127,1750651844719,-490.0,0.00032876,7]
[367079129,1750651844728,-490.0,0.00032876,7]
[367079131,1750651844736,-490.0,0.00032876,7]
[367079133,1750651844746,-937.64,0.00032876,7]
[367079135,1750651844754,-884.34,0.00032876,7]
[367079137,1750651844763,-490.0,0.00032876,7]
[367079139,1750651844773,-490.0,0.00032876,7]
[367079141,1750651844782,-663.66,0.00032876,7]
[367079143,1750651844791,-487.96945855,0.00032876,7]
[367079145,1750651844800,-490.0,0.00032876,7]
[367079147,1750651844809,-490.0,0.00032876,7]
[367079149,1750651844819,-490.0,0.00032876,7]
[367079151,1750651844829,-362.41801606,0.00032876,7]
[367079152,1750651844838,-490.0,0.00032876,7]
[367079154,1750651844847,-490.0,0.00032876,7]